fUSD/lending_fUSD_20251003
["ID","MTS","AMOUNT","RATE_DAILY","PERIOD"]
[388909685,1759491043394,-500.0,0.00021659,2]
[388909686,1759491043404,-500.0,0.00021659,2]
[388909687,1759491043414,-500.0,0.00021659,2]
[388909688,1759491043424,-500.0,0.00021659,2]
[388909689,1759491043434,-500.0,0.00021659,2]
[388909690,1759491043444,-500.0,0.00021659,2]
[388909691,1759491043454,-1000.0,0.0002166,2]
[388909692,1759491043465,-150.0,0.00021663,2]
[388909693,1759491043475,-363.66164828,0.00021671,2]
[388909694,1759491043487,-1000.0,0.00021674,2]
[388909695,1759491043500,-1000.0,0.00021674,2]
[388909696,1759491043511,-1000.0,0.00021681,2]
[388909697,1759491043522,-1000.0,0.00021686,2]
[388909698,1759491043532,-1000.0,0.00021688,2]
[388909699,1759491043542,-1000.0,0.0002169,2]
[388909700,1759491043552,-1114.47900942,0.00021694,2]
[388909701,1759491043562,-737.39253187,0.00021698,2]
[388909702,1759491043572,-208.48217553,0.00021699,2]
[388909703,1759491043581,-370.55283938,0.000217,7]
[388909704,1759491043591,-3800.0,0.000217,7]
[388909705,1759491043600,-500.0,0.000217,2]
[388909706,1759491043610,-267.33863131,0.000217,2]
[388909707,1759491043620,-658.71736083,0.00021712,2]
[388909708,1759491043630,-1000.0,0.00021716,2]
[388909709,1759491043640,-267.3386313,0.00021717,2]
[388909710,1759491043650,-32536.2702765,0.00021717,2]
[388909711,1759491043660,-1167.0,0.00021717,2]
[388909712,1759491043670,-1000.0,0.00021728,2]
[388909713,1759491043680,-267.3386313,0.00021733,2]
[388909714,1759491043690,-613.54069805,0.00021739,2]
[388909715,1759491043763,-379.97327152,0.00021739,2]
[388909716,1759491043775,-6.48603043,0.00021739,2]
[388909717,1759491043785,-150.0,0.00021739,2]
[388909718,1759491043795,-118.47247346,0.00021744,2]
[388909719,1759491043807,-31.52752654,0.00021744,2]
[388909720,1759491044147,-738.26447346,0.00021747,2]
[388909721,1759491044203,-261.73552654,0.00021747,2]
[388909722,1759491044213,-510.09036,0.0002175,2]
[388909723,1759491044224,-267.3386313,0.0002175,2]
[388909724,1759491044234,-363.66164828,0.00021753,2]
[388909725,1759491044245,-1000.0,0.00021754,2]
[388909726,1759491044256,-518.09454897,0.00021755,2]
[388909727,1759491044266,-1000.0,0.00021756,2]
[388909728,1759491044276,-1000.0,0.00021759,2]
[388909729,1759491044285,-1000.0,0.00021761,2]
[388909730,1759491044295,-1000.0,0.00021763,2]
[388909731,1759491044306,-267.3386313,0.00021767,2]
[388909732,1759491044316,-2500.0,0.00021768,3]
[388909733,1759491044326,-1000.0,0.0002177,2]
[388909734,1759491044336,-1000.0,0.00021773,2]
[388909735,1759491044346,-1000.0,0.00021775,2]
[388909736,1759491044356,-2500.0,0.00021777,3]
[388909737,1759491044366,-1000.0,0.00021782,2]
[388909738,1759491044375,-267.3386313,0.00021784,2]
[388909739,1759491044385,-2500.0,0.00021786,3]
[388909740,1759491044394,-152.76420034,0.00021786,2]
[388909741,1759491044404,-1000.0,0.00021787,2]
[388909742,1759491044415,-2500.0,0.00021794,3]
[388909743,1759491044425,-600.0,0.00021794,2]
[388909744,1759491044440,-1000.0,0.00021797,2]
[388909745,1759491044450,-700.0,0.000218,7]
[388909746,1759491044460,-5189.92412485,0.000218,7]
[388909747,1759491044472,-1143.03847122,0.000218,7]
[388909749,1759491045725,-2000.0,0.00018585,2]
[388909750,1759491045735,-12872.03740393,0.000218,7]
[388909751,1759491045743,-942.16,0.000218,7]
[388909752,1759491045753,-370.55283938,0.000218,3]
[388909753,1759491045762,-267.3386313,0.000218,2]
[388909754,1759491045771,-2500.0,0.00021803,3]
[388909755,1759491045781,-208.48217553,0.00021808,2]
[388909756,1759491045790,-202.14,0.0002181,2]
[388909757,1759491045801,-2500.0,0.00021812,3]
[388909758,1759491045810,-657.87295372,0.00021812,3]
[388909759,1759491045819,-1037.25240274,0.00021816,2]
[388909760,1759491045829,-1037.25240266,0.00021816,2]
[388909761,1759491045838,-1037.25240266,0.00021816,2]
[388909762,1759491045847,-1037.25240266,0.00021816,2]
[388909763,1759491045856,-1037.25240266,0.00021816,2]
[388909764,1759491045866,-1037.25240266,0.00021817,2]
[388909765,1759491045876,-1037.25240266,0.00021817,2]
[388909766,1759491045885,-5000.0,0.00021817,2]
[388909767,1759491045895,-1037.25240266,0.00021817,2]
[388909768,1759491045904,-1037.25240266,0.00021817,2]
[388909769,1759491045912,-177.32917676,0.00021817,2]
[388909770,1759491045922,-182.66696835,0.00021817,2]
[388909771,1759491045931,-742.69800468,0.00021817,2]
[388909772,1759491045940,-1114.47900942,0.00021817,2]
[388909773,1759491045950,-267.3386313,0.00021817,2]
[388909774,1759491045959,-1037.25240266,0.00021817,2]
[388909775,1759491045968,-170.44430344,0.00021817,2]
[388909776,1759491045978,-118.350563,0.00021817,2]
[388909777,1759491046007,-39.5173674,0.00021817,2]
[388909778,1759491046018,-152.76420034,0.00021817,2]
[388909779,1759491046027,-862.33385525,0.00021817,2]
[388909780,1759491046037,-293.34583032,0.00021817,2]
[388909781,1759491046046,-229.50898946,0.00021817,2]
[388909782,1759491046057,-6259.22893591,0.00021817,2]
[388909783,1759491046074,-8888.48190531,0.00021817,2]
[388909784,1759491046084,-11487.38662394,0.00021817,2]
[388909785,1759491046094,-216.85560683,0.00021817,4]
[388909786,1759491046103,-1000.0,0.0002182,2]
[388909787,1759491046112,-2500.0,0.00021821,3]
[388909788,1759491046123,-1000.0,0.00021822,2]
[388909789,1759491046132,-2500.0,0.0002183,3]
[388909790,1759491046142,-174.55759116,0.00021836,2]
[388909791,1759491046152,-700.63573833,0.00021837,2]
[388909792,1759491046161,-1000.0,0.00021837,2]
[388909793,1759491046170,-2500.0,0.00021838,3]
[388909794,1759491046180,-1000.0,0.0002184,2]
[388909795,1759491046190,-1000.0,0.00021845,2]
[388909796,1759491046199,-2500.0,0.00021847,3]
[388909797,1759491046208,-9741.31225268,0.0002185,2]
[388909798,1759491046218,-1000.0,0.00021856,2]
[388909799,1759491046227,-2500.0,0.00021856,3]
[388909800,1759491046237,-2500.0,0.00021856,3]
[388909801,1759491046246,-2500.0,0.00021865,3]
[388909802,1759491046257,-2500.0,0.00021865,3]
[388909803,1759491046267,-2500.0,0.00021874,3]
[388909804,1759491046276,-2500.0,0.00021874,3]
[388909805,1759491046286,-500.0,0.00021876,2]
[388909806,1759491046296,-1000.0,0.00021877,2]
[388909807,1759491046305,-1000.0,0.0002188,2]
[388909808,1759491046316,-2500.0,0.00021882,3]
[388909809,1759491046326,-2500.0,0.00021882,3]
[388909810,1759491046335,-2500.0,0.00021882,3]
[388909811,1759491046344,-1000.0,0.00021886,2]
[388909812,1759491046354,-161.69766812,0.00021888,2]
[388909813,1759491046363,-43287.3806333,0.0002189,3]
[388909814,1759491091816,500.0,0.00030136,120]
[388909815,1759491092142,500.0,0.00030136,120]
[388909816,1759491092370,500.0,0.00030136,120]
[388909817,1759491092593,175.29,0.00030136,120]
[388909818,1759491118018,600.0,0.00014752,2]
[388909819,1759491120039,575.6528695,0.00015,2]
[388909823,1759491512575,-1090.0,0.00017406,2]
[388909824,1759491512605,-300.0,0.00018061,2]
[388909825,1759491512635,-304.28,0.00018061,2]
[388909826,1759491512664,-300.43,0.00018061,2]
[388909827,1759491512692,-301.23,0.00018061,2]
[388909828,1759491512723,-300.99,0.00018061,2]
[388909829,1759491512753,-305.49,0.00018061,2]
[388909830,1759491512781,-151.08,0.00018062,2]
[388909831,1759491512811,-303.16,0.00018062,2]
[388909832,1759491512841,-304.77,0.00018062,2]
[388909833,1759491512870,-152.0,0.00018062,2]
[388909834,1759491512899,-302.37,0.00018062,2]
[388909835,1759491512927,-302.65,0.00018062,2]
[388909836,1759491512954,-305.76,0.00018062,2]
[388909837,1759491512981,-302.79,0.00018062,2]
[388909838,1759491513008,-305.72,0.00018062,2]
[388909839,1759491513035,-305.18,0.00018062,2]
[388909840,1759491513061,-1263.0,0.00018063,2]
[388909841,1759491513090,-1090.0,0.00018323,2]
[388909842,1759491513116,-899.0,0.00018551,2]
[388909843,1759491513143,-621.0,0.00018551,2]
[388909844,1759491513169,-316.72,0.00018551,2]
[388909845,1759491513196,-1090.0,0.00018551,2]
[388909846,1759491513220,-300.0,0.00018551,2]
[388909847,1759491513235,-304.28,0.00018551,2]
[388909848,1759491513251,-300.43,0.00018551,2]
[388909849,1759491513272,-301.23,0.00018551,2]
[388909850,1759491513293,-300.99,0.00018551,2]
[388909851,1759491513306,-305.49,0.00018551,2]
[388909852,1759491513333,-151.08,0.00018551,2]
[388909853,1759491513358,-303.16,0.00018551,2]
[388909854,1759491513384,-304.77,0.00018551,2]
[388909855,1759491513406,-152.0,0.00018551,2]
[388909856,1759491513429,-302.37,0.00018551,2]
[388909857,1759491513451,-302.65,0.00018551,2]
[388909858,1759491513467,-305.76,0.00018551,2]
[388909859,1759491513483,-302.79,0.00018551,2]
[388909860,1759491513504,-305.72,0.00018551,2]
[388909861,1759491513516,-305.18,0.00018551,2]
[388909862,1759491513549,-1263.0,0.00018551,2]
[388909863,1759491513571,-1090.0,0.00018551,2]
[388909864,1759491513593,-899.0,0.00018551,2]
[388909865,1759491513606,-621.0,0.00018551,2]
[388909866,1759491513623,-316.72,0.00018551,2]
[388909867,1759491513648,-26616.72145396,0.00018551,2]
[388909869,1759491662094,500.0,0.00030136,120]
[388909870,1759491662345,500.0,0.00030136,120]
[388909871,1759491662667,605.49,0.00030136,120]
[388909872,1759491799606,160.28,0.00010256,2]
[388909873,1759491799694,160.28,0.00011111,2]
[388909874,1759491799781,160.28,0.00011965,2]
[388909875,1759491799966,160.28,0.0001282,2]
[388909876,1759491800050,160.28,0.00013675,2]
[388909877,1759491800247,160.28,0.00014529,2]
[388909878,1759491800354,160.28,0.00015384,2]
[388909879,1759491800455,160.28,0.00016239,2]
[388909880,1759492087549,724.43,0.00016438,2]
[388909887,1759492158999,4000.0,0.00016,10]
[388909888,1759492159035,1190.4388813,0.00016,10]
[388909892,1759492171049,-250.0,0.00017,2]
[388909914,1759492232344,-383.50666572,0.00017023,2]
[388909920,1759492232404,-1616.49333428,0.00017023,2]
[388909922,1759492232414,-250.0,0.00017047,2]
[388909924,1759492232423,-160.28,0.00017094,2]
[388909926,1759492232432,-300.0,0.00017527,2]
[388909928,1759492232442,-1200.0,0.00017527,2]
[388909930,1759492232452,-2000.0,0.00017528,2]
[388909931,1759492232461,-2000.0,0.00017528,2]
[388909932,1759492232470,-160.28,0.00017948,2]
[388909933,1759492232481,-44.80019935,0.00018551,2]
[388909934,1759492232502,-259.23980065,0.00018551,2]
[388909935,1759492232512,-621.0,0.00018551,2]
[388909936,1759492232523,-1319.76019935,0.00018551,2]
[388909937,1759492232534,-2795.23980065,0.00018551,2]
[388909938,1759492232543,-2500.0,0.000187,2]
[388909939,1759492232553,-250.0,0.000187,2]
[388909940,1759492232562,-2000.0,0.000187,2]
[388909941,1759492232571,-160.28,0.00018803,2]
[388909942,1759492232581,-150.99,0.00018803,2]
[388909943,1759492232591,-300.0,0.00019,2]
[388909944,1759492232602,-1810.01,0.00019,2]
[388909945,1759492232612,-420.0,0.00019133,2]
[388909946,1759492232622,-1090.0,0.00019287,2]
[388909947,1759492232632,-370.55283938,0.00019443,2]
[388909948,1759492232642,-24677.34953381,0.00019556,2]
[388909949,1759492232659,-286.6042727,0.00019556,2]
[388909950,1759492232687,-405.95789884,0.00019556,2]
[388909951,1759492232832,-8785.17422446,0.00019556,2]
[388909953,1759492237851,-15477.67097593,0.00019556,2]
[388909958,1759492238227,-959.8615566,0.00019556,2]
[388909959,1759492238253,-11777.97253052,0.00019556,2]
[388909960,1759492238265,-516.14,0.00019556,2]
[388909961,1759492238281,-531.63683674,0.00019556,2]
[388909962,1759492239121,500.0,0.00030136,120]
[388909963,1759492239367,500.0,0.00030136,120]
[388909966,1759492239602,605.49,0.00030136,120]
[388909968,1759492239869,-10920.65279319,0.00019556,2]
[388909969,1759492240003,-252.636388,0.00019556,2]
[388909970,1759492240014,-811.94310018,0.00019556,2]
[388909976,1759492242820,-1999.57890972,0.00019556,2]
[388909977,1759492242831,-160.28,0.00019658,2]
[388909978,1759492242845,-781.714817,0.0002023,2]
[388909979,1759492242855,-3876.8101513,0.0002023,2]
[388909980,1759492242866,-1090.0,0.00020302,2]
[388909981,1759492242876,-1000.0,0.00020343,2]
[388909982,1759492242885,-488.3179096,0.00020343,2]
[388909983,1759492242895,-322.6107,0.00020343,2]
[388909984,1759492242906,-1852.42,0.00020394,2]
[388909985,1759492242916,-358.91,0.0002041,2]
[388909986,1759492242926,-322.1843884,0.00020469,2]
[388909987,1759492242973,-885.0356116,0.00020469,2]
[388909988,1759492242983,-167.84,0.00020469,2]
[388909989,1759492242993,-175.62,0.00020469,2]
[388909990,1759492243003,-1195.54,0.00020469,2]
[388909991,1759492243012,-165.25,0.00020511,2]
[388909992,1759492243022,-160.28,0.00020512,2]
[388909993,1759492243032,-155.73,0.00020522,2]
[388909994,1759492243042,-193.11,0.00020556,2]
[388909995,1759492243052,-150.0,0.00020678,2]
[388909996,1759492243062,-167.84,0.00020678,2]
[388909997,1759492243071,-159.36,0.00020678,2]
[388909998,1759492243081,-279.31855245,0.00020815,2]
[388909999,1759492243091,-666.0,0.00020841,3]
[388910000,1759492243101,-587.0,0.00020886,2]
[388910001,1759492243110,-168.0,0.00020978,2]
[388910002,1759492243120,-350.0,0.00021,2]
[388910003,1759492243129,-168.0,0.00021027,2]
[388910004,1759492243139,-167.84,0.00021078,2]
[388910005,1759492243149,-301.12,0.00021078,2]
[388910006,1759492243159,-168.0,0.000212,2]
[388910007,1759492243169,-168.0,0.00021287,2]
[388910008,1759492243179,-412.7,0.00021291,2]
[388910009,1759492243188,-412.7,0.00021291,2]
[388910010,1759492243198,-412.7,0.00021291,2]
[388910011,1759492243208,-400.0,0.000213,7]
[388910012,1759492243217,-500.0,0.00021315,2]
[388910013,1759492243228,-168.0,0.00021316,2]
[388910014,1759492243238,-1090.0,0.00021317,2]
[388910015,1759492243247,-6478.07460356,0.00021345,2]
[388910016,1759492243259,-6478.07460356,0.00021364,2]
[388910017,1759492243270,-160.17122252,0.0002137,2]
[388910018,1759492243281,-208.48217553,0.0002137,2]
[388910019,1759492243291,-166.78574041,0.0002137,2]
[388910021,1759492243301,-6478.07460356,0.00021374,2]
[388910023,1759492243311,-6478.07460356,0.00021382,2]
[388910024,1759492243322,-305.1856791,0.00021388,2]
[388910025,1759492243331,-305.1856791,0.00021392,2]
[388910026,1759492243341,-900.0,0.000214,7]
[388910028,1759492243351,-1719.0,0.000214,2]
[388910029,1759492243360,-592.4762479,0.0002141,2]
[388910030,1759492243370,-305.1856791,0.00021414,2]
[388910031,1759492243380,-168.0,0.00021422,2]
[388910032,1759492243390,-6478.07460356,0.0002145,2]
[388910033,1759492243399,-160.17122252,0.00021452,2]
[388910034,1759492243412,-208.48217553,0.00021452,2]
[388910036,1759492243421,-305.1856791,0.00021462,2]
[388910037,1759492243431,-305.1856791,0.00021486,2]
[388910038,1759492243441,-1400.0,0.000215,7]
[388910039,1759492243456,-437.0,0.000215,2]
[388910040,1759492243466,-208.48217553,0.00021534,2]
[388910041,1759492243476,-168.0,0.00021537,2]
[388910042,1759492243486,-244.333,0.00021551,2]
[388910043,1759492243497,-4115.0,0.00021551,2]
[388910044,1759492243508,-168.0,0.00021562,2]
[388910045,1759492243518,-160.17122252,0.00021562,2]
[388910046,1759492243528,-582.536,0.00021565,2]
[388910047,1759492243538,-193.11,0.00021584,2]
[388910048,1759492243548,-1900.0,0.000216,7]
[388910049,1759492243558,-208.48217553,0.00021616,2]
[388910050,1759492243567,-166.78574041,0.00021616,2]
[388910051,1759492243577,-160.17122252,0.00021644,2]
[388910052,1759492243587,-150.0,0.00021654,2]
[388910053,1759492243597,-520.62,0.0002167,2]
[388910054,1759492243607,-208.48217553,0.00021699,2]
[388910055,1759492243617,-2400.0,0.000217,7]
[388910056,1759492243627,-150.0,0.00021709,2]
[388910057,1759492243636,-168.0,0.00021751,2]
[388910058,1759492243646,-160.17122252,0.00021753,2]
[388910059,1759492243656,-168.0,0.00021754,2]
[388910060,1759492243666,-150.0,0.00021784,2]
[388910061,1759492243675,-400.0,0.000218,7]
[388910062,1759492243685,-208.48217553,0.00021808,2]
[388910063,1759492243696,-5000.0,0.00021817,2]
[388910064,1759492243706,-177.32917675,0.00021817,2]
[388910065,1759492243717,-177.14925818,0.00021817,2]
[388910066,1759492243727,-1673.04397533,0.00021817,2]
[388910067,1759492243738,-2483.93545648,0.00021817,2]
[388910068,1759492243748,-206.7896915,0.00021817,4]
[388910069,1759492243758,-818.0,0.0002182,2]
[388910070,1759492243768,-150.0,0.00021825,2]
[388910071,1759492243778,-160.17122252,0.00021836,2]
[388910072,1759492243789,-166.78574041,0.00021836,2]
[388910073,1759492243799,-150.0,0.00021848,2]
[388910074,1759492243810,-150.0,0.00021852,2]
[388910075,1759492243820,-5800.0,0.00021858,2]
[388910076,1759492243830,-5800.0,0.00021866,2]
[388910077,1759492243839,-5800.0,0.00021875,2]
[388910078,1759492243849,-5800.0,0.00021883,2]
[388910079,1759492243859,-150.0,0.00021885,2]
[388910080,1759492243869,-255.04517,0.00021888,2]
[388910081,1759492243879,-129861.38286282,0.0002189,3]
[388910082,1759492243889,-208.48217553,0.0002189,2]
[388910083,1759492243899,-2500.0,0.00021891,3]
[388910084,1759492243909,-2500.0,0.00021891,3]
[388910085,1759492243919,-2500.0,0.00021891,3]
[388910086,1759492243929,-2500.0,0.00021891,3]
[388910087,1759492243939,-5800.0,0.00021892,2]
[388910088,1759492243949,-264.70940285,0.00021899,2]
[388910089,1759492243958,-500.0,0.00021899,2]
[388910090,1759492243968,-418.31855692,0.00021899,2]
[388910091,1759492243977,-500.0,0.00021899,2]
[388910092,1759492243987,-500.0,0.00021899,2]
[388910093,1759492243997,-500.0,0.00021899,2]
[388910094,1759492244007,-500.0,0.00021899,2]
[388910095,1759492244017,-500.0,0.00021899,2]
[388910096,1759492244027,-531.85780889,0.00021899,2]
[388910097,1759492244037,-400.0,0.000219,7]
[388910098,1759492244048,-5800.0,0.000219,2]
[388910099,1759492244058,-2500.0,0.000219,3]
[388910100,1759492244072,-5800.0,0.000219,2]
[388910101,1759492244082,-2500.0,0.000219,3]
[388910102,1759492244092,-607.33696713,0.000219,2]
[388910103,1759492244102,-3141.63511786,0.000219,2]
[388910104,1759492244547,-2500.0,0.000219,3]
[388910105,1759492244560,-847.94,0.000219,7]
[388910106,1759492244570,-2500.0,0.000219,3]
[388910107,1759492244580,-1000.0,0.000219,2]
[388910108,1759492244590,-5800.0,0.000219,2]
[388910109,1759492244600,-150.59,0.00021907,2]
[388910110,1759492244609,-150.59,0.00021907,2]
[388910111,1759492244619,-150.59,0.00021907,2]
[388910112,1759492244628,-150.59,0.00021907,2]
[388910113,1759492244638,-151.0,0.00021907,2]
[388910114,1759492244648,-200.0,0.0002191,2]
[388910115,1759492244658,-14675.04848963,0.00021915,2]
[388910116,1759492244667,-385.16746031,0.00021916,2]
[388910117,1759492244676,-329.7712121,0.00021916,2]
[388910118,1759492244685,-1000.0,0.00021916,2]
[388910119,1759492244695,-1000.0,0.00021916,2]
[388910120,1759492244704,-1000.0,0.00021916,2]
[388910121,1759492244716,-1000.0,0.00021916,2]
[388910122,1759492244726,-1000.0,0.00021916,2]
[388910123,1759492244736,-1000.0,0.00021916,2]
[388910124,1759492244746,-1000.0,0.00021916,2]
[388910125,1759492244755,-1000.0,0.00021916,2]
[388910126,1759492244765,-1000.0,0.00021916,2]
[388910127,1759492244774,-1000.0,0.00021916,2]
[388910128,1759492244786,-1000.0,0.00021916,2]
[388910129,1759492244795,-13104.28910612,0.00021917,2]
[388910130,1759492244805,-288040.12155583,0.00021917,2]
[388910131,1759492244814,-1123.15113075,0.00021917,2]
[388910132,1759492244823,-1123.15113075,0.00021917,2]
[388910133,1759492244833,-227254.15537293,0.00021917,2]
[388910134,1759492244843,-227254.15537293,0.00021917,2]
[388910135,1759492244852,-227254.15537293,0.00021917,2]
[388910136,1759492244862,-227254.15537293,0.00021917,2]
[388910137,1759492244871,-227254.15537293,0.00021917,2]
[388910138,1759492244881,-254.99134565,0.00021917,2]
[388910139,1759492244891,-254.99134565,0.00021917,2]
[388910140,1759492244900,-254.99134565,0.00021917,2]
[388910141,1759492244910,-500.0,0.00021917,2]
[388910142,1759492244920,-153.232868,0.00021917,2]
[388910143,1759492244929,-500.0,0.00021917,2]
[388910144,1759492244939,-269.3694405,0.00021917,2]
[388910145,1759492244949,-500.0,0.00021917,2]
[388910146,1759492244958,-500.0,0.00021917,2]
[388910147,1759492244968,-500.0,0.00021917,2]
[388910148,1759492244977,-500.0,0.00021917,2]
[388910149,1759492244986,-500.0,0.00021917,2]
[388910150,1759492244995,-500.0,0.00021917,2]
[388910151,1759492245005,-500.0,0.00021917,2]
[388910152,1759492245014,-504.025087,0.00021917,2]
[388910153,1759492245024,-410.38,0.00021917,2]
[388910154,1759492245036,-500.0,0.00021917,2]
[388910155,1759492245045,-500.0,0.00021917,2]
[388910156,1759492245055,-500.0,0.00021917,2]
[388910157,1759492245064,-500.0,0.00021917,2]
[388910158,1759492245073,-500.0,0.00021917,2]
[388910159,1759492245082,-500.0,0.00021917,2]
[388910160,1759492245091,-500.0,0.00021917,2]
[388910161,1759492245102,-500.0,0.00021917,2]
[388910162,1759492245111,-500.0,0.00021917,2]
[388910163,1759492245121,-504.68659035,0.00021917,2]
[388910164,1759492245130,-500.0,0.00021917,2]
[388910165,1759492245141,-500.0,0.00021917,2]
[388910166,1759492245150,-500.0,0.00021917,2]
[388910167,1759492245159,-359.30056824,0.00021917,2]
[388910168,1759492245168,-500.0,0.00021917,2]
[388910169,1759492245177,-500.0,0.00021917,2]
[388910170,1759492245187,-500.0,0.00021917,2]
[388910171,1759492245196,-500.0,0.00021917,2]
[388910172,1759492245205,-500.0,0.00021917,2]
[388910173,1759492245216,-500.0,0.00021917,2]
[388910174,1759492245226,-500.0,0.00021917,2]
[388910175,1759492245236,-500.0,0.00021917,2]
[388910176,1759492245246,-500.0,0.00021917,2]
[388910177,1759492245257,-500.0,0.00021917,2]
[388910178,1759492245276,-500.0,0.00021917,2]
[388910179,1759492245291,-500.0,0.00021917,2]
[388910180,1759492245301,-500.0,0.00021917,2]
[388910181,1759492245310,-747.83,0.00021917,2]
[388910182,1759492245320,-500.0,0.00021917,2]
[388910183,1759492245330,-747.83,0.00021917,2]
[388910184,1759492245340,-479.89442472,0.00021917,2]
[388910185,1759492245350,-747.83,0.00021917,2]
[388910186,1759492245360,-747.83,0.00021917,2]
[388910187,1759492245369,-747.83,0.00021917,2]
[388910188,1759492245379,-747.83,0.00021917,2]
[388910189,1759492245389,-747.83,0.00021917,2]
[388910190,1759492245398,-747.83,0.00021917,2]
[388910191,1759492245409,-747.83,0.00021917,2]
[388910192,1759492245422,-747.83,0.00021917,2]
[388910193,1759492245431,-747.83,0.00021917,2]
[388910194,1759492245441,-747.83,0.00021917,2]
[388910195,1759492245451,-747.83,0.00021917,2]
[388910196,1759492245460,-747.83,0.00021917,2]
[388910197,1759492245470,-747.83,0.00021917,2]
[388910198,1759492245480,-747.83,0.00021917,2]
[388910199,1759492245492,-747.83,0.00021917,2]
[388910200,1759492245501,-747.83,0.00021917,2]
[388910201,1759492245510,-747.83,0.00021917,2]
[388910202,1759492245519,-747.83,0.00021917,2]
[388910203,1759492245527,-747.83,0.00021917,2]
[388910204,1759492245538,-747.83,0.00021917,2]
[388910205,1759492245547,-747.83,0.00021917,2]
[388910206,1759492245555,-748.04080026,0.00021917,2]
[388910207,1759492245565,-500.0,0.00021917,2]
[388910208,1759492245574,-500.0,0.00021917,2]
[388910209,1759492245583,-500.0,0.00021917,2]
[388910211,1759492245593,-500.0,0.00021917,2]
[388910212,1759492245602,-500.0,0.00021917,2]
[388910213,1759492245611,-500.0,0.00021917,2]
[388910214,1759492245620,-500.0,0.00021917,2]
[388910215,1759492245631,-500.0,0.00021917,2]
[388910216,1759492245642,-500.0,0.00021917,2]
[388910217,1759492245651,-500.0,0.00021917,2]
[388910218,1759492245662,-500.0,0.00021917,2]
[388910219,1759492245672,-500.0,0.00021917,2]
[388910220,1759492245681,-500.0,0.00021917,2]
[388910221,1759492245691,-500.0,0.00021917,2]
[388910222,1759492245700,-500.0,0.00021917,2]
[388910223,1759492245710,-529.43443091,0.00021917,2]
[388910224,1759492245720,-500.0,0.00021917,2]
[388910225,1759492245730,-500.0,0.00021917,2]
[388910226,1759492245739,-505.87734861,0.00021917,2]
[388910227,1759492245749,-500.0,0.00021917,2]
[388910228,1759492245759,-500.0,0.00021917,2]
[388910229,1759492245768,-500.0,0.00021917,2]
[388910230,1759492245778,-500.0,0.00021917,2]
[388910231,1759492245788,-500.0,0.00021917,2]
[388910232,1759492245798,-500.0,0.00021917,2]
[388910233,1759492245807,-500.0,0.00021917,2]
[388910234,1759492245817,-500.0,0.00021917,2]
[388910235,1759492245827,-500.0,0.00021917,2]
[388910236,1759492245836,-500.0,0.00021917,2]
[388910237,1759492245846,-500.0,0.00021917,2]
[388910238,1759492245856,-500.0,0.00021917,2]
[388910239,1759492245866,-500.0,0.00021917,2]
[388910240,1759492245875,-500.0,0.00021917,2]
[388910241,1759492245885,-500.0,0.00021917,2]
[388910242,1759492245895,-500.0,0.00021917,2]
[388910243,1759492245906,-500.0,0.00021917,2]
[388910244,1759492245916,-500.0,0.00021917,2]
[388910245,1759492245928,-500.0,0.00021917,2]
[388910246,1759492245937,-500.0,0.00021917,2]
[388910247,1759492245946,-500.0,0.00021917,2]